[Event "44th Chess Olympiad Open 2022"]
[Site "Chennai"]
[Date "2022.08.09"]
[Round "11.67"]
[White "Abdulkadir Mohamed Warsame"]
[Black "Sanches, Casanova Romario"]
[Result "1/2-1/2"]
[ECO "A31"]
[WhiteElo "1820"]
[BlackElo "2066"]
[Annotator "RC"]
[PlyCount "238"]
[EventDate "2022.07.29"]
[EventType "team-tourn"]
[EventCountry "IND"]
[SourceTitle "playchess.com"]
[Source "ChessBase"]
[SourceQuality "1"]
[WhiteTeam "Somalia"]
[BlackTeam "Surinam"]
[WhiteTeamCountry "SOM"]
[BlackTeamCountry "SUR"]
[TimeControl "40/5400+30:1800+30"]

1. c4 {[%emt 0:00:06]} Nf6 {[%emt 0:00:03]} 2. Nc3 {[%emt 0:00:08]} c5 {[%emt 0:00:13]} 3. Nf3 {[%emt 0:00:12]} Nc6 {[%emt 0:00:07]} 4. d4 {[%emt 0:00:10]} cxd4 {[%emt 0:00:02]} 5. Nxd4 {[%emt 0:00:10]} Qb6 {[%emt 0:00:05]} 6. e3 {[%emt 0:05:23]} e6 {[%emt 0:00:51]} 7. Ndb5 {[%emt 0:00:52]} a6 {[%emt 0:13:16]} 8. Nd6+ {[%emt 0:00:37]} Bxd6 {[%emt 0:00:04]} 9. Qxd6 {[%emt 0:00:11]} Qb4 {[%emt 0:01:26]} 10. Qg3 {[%emt 0:06:04]} O-O {[%emt 0:05:32]} 11. Bd3 {[%emt 0:07:27]} Qc5 {[%emt 0:02:30]} 12. b3 {[%emt 0:05:35]} Qe5 {[%emt 0:04:24]} 13. Bb2 {[%emt 0:07:21]} Qxg3 {[%emt 0:07:23]} 14. hxg3 {[%emt 0:00:21]} Ne5 {[%emt 0:00:12]} 15. Bc2 {[%emt 0:00:37]} Ng6 {[%emt 0:00:23]} 16. Ne4 {[%emt 0:06:07]} Nxe4 {[%emt 0:01:57]} 17. Bxe4 {[%emt 0:00:02]} f5 {[%emt 0:06:11]} 18. Bf3 {[%emt 0:00:28]} Rb8 {[%emt 0:01:01]} 19. Ba3 {[%emt 0:00:14]} Re8 {[%emt 0:01:36]} 20. Bd6 {[%emt 0:00:12]} Ra8 {[%emt 0:00:06]} 21. b4 {[%emt 0:06:10]} Nh8 {[%emt 0:04:47]} 22. O-O-O {[%emt 0:06:51]} Nf7 {[%emt 0:00:33]} 23. c5 {[%emt 0:01:49]} Ng5 {[%emt 0:01:14]} 24. a4 {[%emt 0:00:59]} Nxf3 {[%emt 0:03:59]} 25. gxf3 {[%emt 0:00:05]} b6 {[%emt 0:00:06]} 26. Bc7 {[%emt 0:02:40]} bxc5 {[%emt 0:02:36]} 27. bxc5 {[%emt 0:00:07]} Re7 {[%emt 0:05:30]} 28. Rd4 {[%emt 0:08:43]} Bb7 {[%emt 0:04:11]} 29. Rhd1 {[%emt 0:04:09]} Bc6 {[%emt 0:02:27]} 30. a5 {[%emt 0:00:15]} Kf7 {[%emt 0:04:55]} 31. f4 {[%emt 0:01:32]} h6 {[%emt 0:02:12]} 32. Rb4 {[%emt 0:01:01]} g5 {[%emt 0:02:56]} 33. Rd2 {[%emt 0:12:07]} Kg6 {[%emt 0:01:29]} 34. Rdb2 {[%emt 0:03:18]} Ree8 {[%emt 0:01:11]} 35. Rb8 {[%emt 0:00:25]} Rexb8 {[%emt 0:03:18]} 36. Rxb8 {[%emt 0:00:03]} Rxb8 {[%emt 0:01:46]} 37. Bxb8 {[%emt 0:00:01]} Kh5 {[%emt 0:00:12]} 38. fxg5 {[%emt 0:00:30]} Kxg5 {[%emt 0:06:10]} 39. Bf4+ {[%emt 0:04:08]} Kg4 {[%emt 0:01:58]} 40. Kd2 {[%emt 0:01:17]} Kf3 {[%emt 0:03:11]} 41. Kd3 {[%emt 0:30:15]} Kxf2 {[%emt 0:32:07]} 42. Kd4 {[%emt 0:00:11]} h5 {[%emt 0:02:23]} 43. Bc7 {[%emt 0:01:15]} Kf3 {[%emt 0:00:45]} 44. Bf4 {[%emt 0:00:13]} Ke2 {[%emt 0:01:42]} 45. Bc7 {[%emt 0:00:19]} Kd2 {[%emt 0:00:28]} 46. Bf4 {[%emt 0:04:44]} Kc2 {[%emt 0:00:11]} 47. Bd6 {[%emt 0:03:51]} Kb3 {[%emt 0:00:09]} 48. Bc7 {[%emt 0:00:07]} Kb4 {[%emt 0:00:20]} 49. Bb6 {[%emt 0:00:28]} Kb5 {[%emt 0:02:00]} 50. Bc7 {[%emt 0:00:34]} Be4 {[%emt 0:00:24]} 51. Bb6 {[%emt 0:00:17]} Kc6 {[%emt 0:02:36]} 52. Ke5 {[%emt 0:00:18]} Bc2 {[%emt 0:00:00]} 53. Kd4 {[%emt 0:00:00]} Kb5 {[%emt 0:00:00]} 54. Bc7 {[%emt 0:00:00]} Be4 {[%emt 0:00:00]} 55. Bb6 {[%emt 0:00:00]} Kb4 {[%emt 0:00:00]} 56. Bc7 {[%emt 0:00:00]} Kb3 {[%emt 0:00:00]} 57. Bd6 {[%emt 0:00:00]} Kc2 {[%emt 0:00:00]} 58. Bf4 {[%emt 0:00:00]} Kd2 {[%emt 0:00:00]} 59. Bc7 {[%emt 0:00:00]} Ke2 {[%emt 0:00:00]} 60. Bf4 {[%emt 0:00:00]} Kf3 {[%emt 0:00:00]} 61. Bc7 {[%emt 0:00:00]} Kg4 {[%emt 0:00:00]} 62. Bf4 {[%emt 0:00:00]} Bc6 {[%emt 0:00:00]} 63. Ke5 {[%emt 0:00:00]} h4 {[%emt 0:00:00]} 64. gxh4 {[%emt 0:00:00]} Kxh4 {[%emt 0:00:00]} 65. Kd4 {[%emt 0:00:00]} Kg4 {[%emt 0:00:00]} 66. Bc7 {[%emt 0:00:00]} Kf3 {[%emt 0:00:00]} 67. Bf4 {[%emt 0:00:00]} Ke2 {[%emt 0:00:00]} 68. Bc7 {[%emt 0:00:00]} Kd2 {[%emt 0:00:00]} 69. Bf4 {[%emt 0:00:00]} Kc2 {[%emt 0:00:00]} 70. Bd6 {[%emt 0:00:00]} Kb3 {[%emt 0:00:00]} 71. Bc7 {[%emt 0:00:00]} Kb4 {[%emt 0:00:00]} 72. Bb6 {[%emt 0:00:00]} Be4 {[%emt 0:00:00]} 73. Bc7 {[%emt 0:00:00]} Kb5 {[%emt 0:00:00]} 74. Bb6 {[%emt 0:00:00]} Kc6 {[%emt 0:00:00]} 75. Ke5 {[%emt 0:00:24]} Bc2 {[%emt 0:00:00]} 76. Kd4 {[%emt 0:00:00]} Bb3 {[%emt 0:00:00]} 77. Ke5 {[%emt 0:00:00]} Bd5 {[%emt 0:00:00]} 78. Ba7 {[%emt 0:00:00]} Kb5 {[%emt 0:00:00]} 79. Bb6 {[%emt 0:00:00]} Kc4 {[%emt 0:00:00]} 80. Ba7 {[%emt 0:00:00]} Bc6 {[%emt 0:00:00]} 81. Bb6 {[%emt 0:00:00]} Kd3 {[%emt 0:00:00]} 82. Kf4 {[%emt 0:00:00]} Be4 {[%emt 0:00:00]} 83. Ba7 {[%emt 0:00:00]} Kc4 {[%emt 0:01:19]} 84. Ke5 {[%emt 0:00:00]} Bc6 {[%emt 0:00:35]} 85. Bb6 {[%emt 0:00:00]} Kd3 {[%emt 0:01:47]} 86. Kf4 {[%emt 0:00:00]} Ke2 {[%emt 0:00:14]} 87. Ba7 {[%emt 0:00:00]} Kd3 {[%emt 0:05:41]} 88. Bb6 {[%emt 0:00:00]} Kc4 {[%emt 0:00:26]} 89. Ke5 {[%emt 0:00:00]} Ba4 {[%emt 0:01:02]} 90. Ba7 {[%emt 0:00:00]} Bc2 {[%emt 0:01:18]} 91. Bb6 {[%emt 0:00:00]} Be4 {[%emt 0:00:18]} 92. Ba7 {[%emt 0:00:00]} Kb5 {[%emt 0:02:19]} 93. Bb6 {[%emt 0:00:00]} Kc6 {[%emt 0:00:39]} 94. Ba7 {[%emt 0:00:00]} Kb5 {[%emt 0:00:48]} 95. Bb6 {[%emt 0:00:00]} Kb4 {[%emt 0:00:26]} 96. Kd4 {[%emt 0:00:00]} Bc6 {[%emt 0:00:24]} 97. Ke5 {[%emt 0:00:00]} Kc4 {[%emt 0:00:57]} 98. Ba7 {[%emt 0:00:00]} Kd3 {[%emt 0:00:30]} 99. Kf4 {[%emt 0:00:00]} Ke2 {[%emt 0:00:24]} 100. Bb6 {[%emt 0:00:00]} Kf2 {[%emt 0:00:15]} 101. Ba7 {[%emt 0:00:00]} Kg2 {[%emt 0:00:09]} 102. Bb6 {[%emt 0:00:00]} Kh3 {[%emt 0:00:16]} 103. Bd8 {[%emt 0:00:00]} Be4 {[%emt 0:00:37]} 104. Be7 {[%emt 0:00:00]} Kg2 {[%emt 0:00:43]} 105. Bd8 {[%emt 0:00:00]} Bd3 {[%emt 0:01:24]} 106. Bb6 {[%emt 0:00:00]} Bc2 {[%emt 0:00:45]} 107. Bd8 {[%emt 0:00:00]} Kf2 {[%emt 0:00:34]} 108. Bb6 {[%emt 0:00:00]} Ke2 {[%emt 0:00:23]} 109. Ba7 {[%emt 0:00:00]} Kd3 {[%emt 0:00:32]} 110. Bb6 {[%emt 0:00:00]} Kc4 {[%emt 0:00:25]} 111. Ke5 {[%emt 0:00:00]} Be4 {[%emt 0:00:56]} 112. Ba7 {[%emt 0:00:00]} Kb5 {[%emt 0:00:40]} 113. Bb6 {[%emt 0:00:00]} Kc6 {[%emt 0:00:12]} 114. Ba7 {[%emt 0:00:00]} Bc2 {[%emt 0:00:35]} 115. Bb6 {[%emt 0:00:00]} f4 {[%emt 0:00:43]} 116. exf4 {[%emt 0:00:00]} Kb7 {[%emt 0:00:31]} 117. Kd6 {[%emt 0:00:00]} Ba4 {[%emt 0:00:31]} 118. Bd8 {[%emt 0:00:00]} Bc6 {[%emt 0:00:25]} 119. Bh4 {[%emt 0:00:00]} Bb5 {[%emt 0:00:00]} 1/2-1/2

[Event "44th Chess Olympiad Open 2022"]
[Site "Chennai"]
[Date "2022.08.09"]
[Round "11.67"]
[White "Kalidjo, Imaan"]
[Black "Nor, Mohamed Ahmed"]
[Result "0-1"]
[ECO "A36"]
[WhiteElo "1819"]
[BlackElo "1907"]
[Annotator "NA RC"]
[PlyCount "116"]
[EventDate "2022.07.29"]
[EventType "team-tourn"]
[EventCountry "IND"]
[SourceTitle "playchess.com"]
[Source "ChessBase"]
[SourceQuality "1"]
[WhiteTeam "Surinam"]
[BlackTeam "Somalia"]
[WhiteTeamCountry "SUR"]
[BlackTeamCountry "SOM"]
[TimeControl "40/5400+30:1800+30"]

1. c4 {[%emt 0:00:03]} c5 {[%emt 0:00:12]} 2. g3 {[%emt 0:00:05]} Nf6 {[%emt 0:00:29]} 3. Bg2 {[%emt 0:00:06]} g6 {[%emt 0:00:20]} 4. Nc3 {[%emt 0:00:09]} Bg7 {[%emt 0:00:16]} 5. d3 {[%emt 0:00:05]} Nc6 {[%emt 0:00:32]} 6. e4 {[%emt 0:00:28]} d6 {[%emt 0:00:26]} 7. Nge2 {[%emt 0:00:07]} e5 {[%emt 0:01:36]} 8. O-O {[%emt 0:00:45]} O-O {[%emt 0:01:05]} 9. h3 {[%emt 0:00:33]} a6 {[%emt 0:00:31]} 10. f4 {[%emt 0:03:10]} exf4 {[%emt 0:00:22]} 11. Bxf4 {[%emt 0:05:17]} Nh5 {[%emt 0:00:41]} 12. Be3 {[%emt 0:02:47]} Nd4 {[%emt 0:00:31]} 13. Bxd4 {[%emt 0:24:44]} cxd4 {[%emt 0:06:09]} 14. Nd5 {[%emt 0:01:30]} Be5 {[%emt 0:00:39]} 15. Qe1 {[%emt 0:04:56]} Be6 {[%emt 0:00:36]} 16. Ndf4 {[%emt 0:10:17]} Ng7 {[%emt 0:00:42]} 17. a4 {[%emt 0:06:38]} a5 {[%emt 0:00:30]} 18. Ra3 {[%emt 0:01:03]} Qb6 {[%emt 0:00:28]} 19. Qc1 {[%emt 0:22:34]} Rac8 {[%emt 0:00:45]} 20. Kh2 {[%emt 0:01:01]} Qd8 {[%emt 0:01:34]} 21. Rb3 {[%emt 0:03:50]} b6 {[%emt 0:00:28]} 22. Qe1 {[%emt 0:01:36]} Rb8 {[%emt 0:10:16]} 23. Qf2 {[%emt 0:02:02]} Bd7 {[%emt 0:00:55]} 24. Nxd4 {[%emt 0:03:34]} Bxa4 {[%emt 0:00:42]} 25. Ra3 {[%emt 0:00:52]} Bd7 {[%emt 0:00:41]} 26. Nf3 {[%emt 0:01:13]} Ne6 {[%emt 0:01:26]} 27. Nxe6 {[%emt 0:01:55]} fxe6 {[%emt 0:00:18]} 28. d4 {[%emt 0:00:42]} Bg7 {[%emt 0:00:59]} 29. Qd2 {[%emt 0:01:12]} Qc7 {[%emt 0:00:22]} 30. Rc1 {[%emt 0:00:40]} h6 {[%emt 0:01:47]} 31. b3 {[%emt 0:00:57]} Kh7 {[%emt 0:00:14]} 32. Ra2 {[%emt 0:00:37]} Rf7 {[%emt 0:00:17]} 33. Qd3 {[%emt 0:00:28]} e5 {[%emt 0:01:55]} 34. d5 {[%emt 0:00:53]} Rbf8 {[%emt 0:00:41]} 35. Rf1 {[%emt 0:00:06]} Qc5 {[%emt 0:01:08]} 36. Raf2 {[%emt 0:00:33]} Kg8 {[%emt 0:01:10]} 37. Rb2 {[%emt 0:00:19]} b5 {[%emt 0:00:53]} 38. Ra1 {[%emt 0:01:05]} b4 {[%emt 0:01:25]} 39. Rba2 {[%emt 0:00:18]} Ra8 {[%emt 0:01:03]} 40. Qc2 {[%emt 0:00:46]} g5 {[%emt 0:00:23]} 41. Ne1 {[%emt 0:01:17]} Qe3 {[%emt 0:03:41]} 42. Nd3 {[%emt 0:09:08]} h5 {[%emt 0:01:12]} 43. Qe2 {[%emt 0:09:09]} Qb6 {[%emt 0:02:30]} 44. Qxh5 {[%emt 0:04:07]} g4 {[%emt 0:01:21]} 45. hxg4 {[%emt 0:07:00]} Bf8 {[%emt 0:00:39]} 46. Bh3 {[%emt 0:00:42]} Qd4 {[%emt 0:00:56]} 47. Rf1 {[%emt 0:01:22]} Rh7 {[%emt 0:01:43]} 48. Qg5+ {[%emt 0:00:18]} Bg7 {[%emt 0:00:34]} 49. Raf2 {[%emt 0:01:28]} Qxd3 {[%emt 0:02:46]} 50. Rf7 {[%emt 0:00:01]} a4 {[%emt 0:04:46]} 51. bxa4 {[%emt 0:00:45]} b3 {[%emt 0:00:34]} 52. R7f3 {[%emt 0:00:45]} Qxe4 {[%emt 0:00:50]} 53. Kg2 {[%emt 0:00:30]} b2 {[%emt 0:01:35]} 54. Qe7 {[%emt 0:00:27]} b1=Q {[%emt 0:01:50]} 55. Rxb1 {[%emt 0:00:02]} Qxb1 {[%emt 0:00:49]} 56. Qxd7 {[%emt 0:00:03]} Rxh3 {[%emt 0:02:25]} 57. Qf7+ {[%emt 0:01:15]} Kh8 {[%emt 0:06:15]} 58. Rf1 {[%emt 0:00:05]} Qh7 {[%emt 0:01:08]} 0-1

[Event "44th Chess Olympiad Open 2022"]
[Site "Chennai"]
[Date "2022.08.09"]
[Round "11.68"]
[White "Al-Sulaiti, Ghanem"]
[Black "Ashraf, Ahmed Ramadan"]
[Result "1-0"]
[ECO "B51"]
[WhiteElo "2183"]
[BlackElo "1916"]
[Annotator "RC"]
[PlyCount "83"]
[EventDate "2022.07.29"]
[EventType "team-tourn"]
[EventCountry "IND"]
[SourceTitle "playchess.com"]
[Source "ChessBase"]
[SourceQuality "1"]
[WhiteTeam "Qatar"]
[BlackTeam "Egypt"]
[WhiteTeamCountry "QAT"]
[BlackTeamCountry "EGY"]
[TimeControl "40/5400+30:1800+30"]

1. e4 {[%emt 0:00:02]} c5 {[%emt 0:00:07]} 2. Nf3 {[%emt 0:00:07]} d6 {[%emt 0:00:03]} 3. Bb5+ {[%emt 0:00:13]} Nd7 {[%emt 0:00:43]} 4. c3 {[%emt 0:00:16]} Ngf6 {[%emt 0:00:06]} 5. Qe2 {[%emt 0:00:15]} a6 {[%emt 0:02:04]} 6. Ba4 {[%emt 0:00:11]} b5 {[%emt 0:01:30]} 7. Bc2 {[%emt 0:00:12]} Bb7 {[%emt 0:00:33]} 8. O-O {[%emt 0:00:32]} e6 {[%emt 0:02:19]} 9. d4 {[%emt 0:01:32]} cxd4 {[%emt 0:00:16]} 10. cxd4 {[%emt 0:00:07]} Be7 {[%emt 0:00:48]} 11. a4 {[%emt 0:05:19]} bxa4 {[%emt 0:03:06]} 12. Rxa4 {[%emt 0:00:58]} O-O {[%emt 0:00:19]} 13. Nc3 {[%emt 0:00:24]} Qb6 {[%emt 0:00:37]} 14. e5 {[%emt 0:17:26]} Bxf3 {[%emt 0:06:01]} 15. gxf3 {[%emt 0:00:19]} dxe5 {[%emt 0:00:14]} 16. dxe5 {[%emt 0:00:22]} Nd5 {[%emt 0:03:24]} 17. Qd3 {[%emt 0:01:06]} g6 {[%emt 0:02:25]} 18. Nxd5 {[%emt 0:00:11]} exd5 {[%emt 0:00:02]} 19. Qxd5 {[%emt 0:00:33]} Rad8 {[%emt 0:01:31]} 20. Qa5 {[%emt 0:07:05]} Qb5 {[%emt 0:07:47]} 21. f4 {[%emt 0:05:32]} Nc5 {[%emt 0:01:25]} 22. Qxb5 {[%emt 0:08:00]} axb5 {[%emt 0:05:25]} 23. Ra7 {[%emt 0:02:25]} Rfe8 {[%emt 0:01:39]} 24. Be3 {[%emt 0:00:39]} Ne6 {[%emt 0:02:12]} 25. Rd1 {[%emt 0:03:48]} Bc5 {[%emt 0:20:20]} 26. Rad7 {[%emt 0:09:08]} Bxe3 {[%emt 0:01:59]} 27. fxe3 {[%emt 0:00:07]} Rxd7 {[%emt 0:00:09]} 28. Rxd7 {[%emt 0:00:09]} Rd8 {[%emt 0:00:10]} 29. Rxd8+ {[%emt 0:01:29]} Nxd8 {[%emt 0:05:39]} 30. Bb3 {[%emt 0:01:14]} Kf8 {[%emt 0:00:23]} 31. Kf2 {[%emt 0:00:04]} Ke7 {[%emt 0:00:33]} 32. Bd5 {[%emt 0:00:43]} Kd7 {[%emt 0:01:33]} 33. b4 {[%emt 0:00:32]} Ne6 {[%emt 0:11:08]} 34. Bxe6+ {[%emt 0:01:10]} Kxe6 {[%emt 0:00:18]} 35. e4 {[%emt 0:00:12]} h6 {[%emt 0:12:13]} 36. h4 {[%emt 0:00:27]} g5 {[%emt 0:04:42]} 37. hxg5 {[%emt 0:00:14]} hxg5 {[%emt 0:00:02]} 38. fxg5 {[%emt 0:00:27]} Kxe5 {[%emt 0:00:12]} 39. Ke3 {[%emt 0:00:07]} Ke6 {[%emt 0:00:32]} 40. Kf4 {[%emt 0:01:20]} Kd7 {[%emt 0:04:23]} 41. Kf5 {[%emt 0:30:12]} Ke7 {[%emt 0:30:43]} 42. Ke5 {[%emt 0:00:15]} 1-0

[Event "44th Chess Olympiad Open 2022"]
[Site "Chennai"]
[Date "2022.08.09"]
[Round "11.68"]
[White "Fuad, Ahmed Mufleh"]
[Black "Al-Homaid, Abdulla"]
[Result "1-0"]
[ECO "D60"]
[WhiteElo "2086"]
[BlackElo "1358"]
[Annotator "NA RC"]
[PlyCount "51"]
[EventDate "2022.07.29"]
[EventType "team-tourn"]
[EventCountry "IND"]
[SourceTitle "playchess.com"]
[Source "ChessBase"]
[SourceQuality "1"]
[WhiteTeam "Yemen"]
[BlackTeam "Qatar"]
[WhiteTeamCountry "YEM"]
[BlackTeamCountry "QAT"]
[TimeControl "40/5400+30:1800+30"]

1. d4 {[%emt 0:00:02]} d5 {[%emt 0:00:11]} 2. c4 {[%emt 0:00:05]} e6 {[%emt 0:00:04]} 3. Nc3 {[%emt 0:00:16]} Nf6 {[%emt 0:00:13]} 4. Bg5 {[%emt 0:00:38]} Be7 {[%emt 0:00:27]} 5. e3 {[%emt 0:00:11]} O-O {[%emt 0:00:12]} 6. Bd3 {[%emt 0:00:05]} dxc4 {[%emt 0:00:50]} 7. Bxc4 {[%emt 0:00:15]} a6 {[%emt 0:00:17]} 8. Nf3 {[%emt 0:00:13]} b5 {[%emt 0:00:38]} 9. Bd3 {[%emt 0:00:16]} Bb7 {[%emt 0:01:43]} 10. O-O {[%emt 0:01:53]} Nbd7 {[%emt 0:00:00]} 11. Qe2 {[%emt 0:00:50]} c5 {[%emt 0:01:03]} 12. Rfd1 {[%emt 0:01:19]} Qb6 {[%emt 0:04:08]} 13. Rac1 {[%emt 0:02:33]} Rac8 {[%emt 0:03:14]} 14. Ne5 {[%emt 0:02:47]} Rfd8 {[%emt 0:20:05]} 15. Bb1 {[%emt 0:20:35]} cxd4 {[%emt 0:00:00]} 16. exd4 {[%emt 0:00:51]} Nf8 {[%emt 0:00:00]} 17. Be3 {[%emt 0:02:38]} Qa5 {[%emt 0:01:41]} 18. a3 {[%emt 0:04:39]} Nd5 {[%emt 0:06:53]} 19. Ne4 {[%emt 0:06:29]} Qb6 {[%emt 0:18:41]} 20. g4 {[%emt 0:01:42]} f6 {[%emt 0:15:58]} 21. Nd3 {[%emt 0:10:30]} Nxe3 {[%emt 0:01:57]} 22. Qxe3 {[%emt 0:00:56]} Rxc1 {[%emt 0:06:28]} 23. Nxc1 {[%emt 0:02:03]} e5 {[%emt 0:03:10]} 24. d5 {[%emt 0:01:59]} Qxe3 {[%emt 0:00:35]} 25. fxe3 {[%emt 0:00:09]} Rxd5 {[%emt 0:00:33]} 26. Ba2 {[%emt 0:00:35]} 1-0

[Event "44th Chess Olympiad Open 2022"]
[Site "Chennai"]
[Date "2022.08.09"]
[Round "11.68"]
[White "Muhammed, Shuaau"]
[Black "Aziz, Husain"]
[Result "1-0"]
[ECO "C60"]
[WhiteElo "1987"]
[BlackElo "2380"]
[Annotator "RC"]
[PlyCount "95"]
[EventDate "2022.07.29"]
[EventType "team-tourn"]
[EventCountry "IND"]
[SourceTitle "playchess.com"]
[Source "ChessBase"]
[SourceQuality "1"]
[WhiteTeam "Maldives"]
[BlackTeam "Qatar"]
[WhiteTeamCountry "MDV"]
[BlackTeamCountry "QAT"]
[TimeControl "40/5400+30:1800+30"]

1. e4 {[%emt 0:00:04]} e5 {[%emt 0:00:13]} 2. Nf3 {[%emt 0:00:06]} Nc6 {[%emt 0:00:09]} 3. Bb5 {[%emt 0:00:12]} g6 {[%emt 0:02:26]} 4. d4 {[%emt 0:01:23]} exd4 {[%emt 0:00:30]} 5. c3 {[%emt 0:03:32]} a6 {[%emt 0:05:32]} 6. Bxc6 {[%emt 0:04:31]} dxc6 {[%emt 0:00:08]} 7. cxd4 {[%emt 0:05:32]} Bg7 {[%emt 0:00:07]} 8. h3 {[%emt 0:01:17]} Ne7 {[%emt 0:00:09]} 9. Nc3 {[%emt 0:00:41]} O-O {[%emt 0:00:09]} 10. O-O {[%emt 0:00:20]} h6 {[%emt 0:00:29]} 11. Qc2 {[%emt 0:10:31]} g5 {[%emt 0:02:50]} 12. g4 {[%emt 0:06:05]} f6 {[%emt 0:15:38]} 13. Be3 {[%emt 0:06:11]} Be6 {[%emt 0:05:54]} 14. Nh2 {[%emt 0:04:57]} Ng6 {[%emt 0:02:39]} 15. Ne2 {[%emt 0:02:27]} Nh4 {[%emt 0:16:04]} 16. f4 {[%emt 0:06:22]} Re8 {[%emt 0:01:52]} 17. Bf2 {[%emt 0:14:44]} Bf7 {[%emt 0:07:37]} 18. Bxh4 {[%emt 0:02:59]} gxh4 {[%emt 0:00:01]} 19. Nf3 {[%emt 0:04:41]} Qe7 {[%emt 0:00:47]} 20. Nc3 {[%emt 0:00:39]} Qd6 {[%emt 0:15:36]} 21. Qd2 {[%emt 0:02:58]} Rad8 {[%emt 0:00:04]} 22. Rad1 {[%emt 0:01:04]} b5 {[%emt 0:03:54]} 23. e5 {[%emt 0:07:29]} fxe5 {[%emt 0:01:42]} 24. fxe5 {[%emt 0:01:52]} Qe7 {[%emt 0:00:49]} 25. Qe3 {[%emt 0:01:37]} c5 {[%emt 0:05:01]} 26. dxc5 {[%emt 0:01:12]} Rxd1 {[%emt 0:00:06]} 27. Rxd1 {[%emt 0:03:15]} Bxe5 {[%emt 0:00:13]} 28. Nxe5 {[%emt 0:00:09]} Qxe5 {[%emt 0:00:01]} 29. Qxe5 {[%emt 0:00:02]} Rxe5 {[%emt 0:00:01]} 30. b4 {[%emt 0:00:47]} Re3 {[%emt 0:00:29]} 31. Nd5 {[%emt 0:00:25]} Rxh3 {[%emt 0:01:49]} 32. Nxc7 {[%emt 0:00:16]} Rg3+ {[%emt 0:00:56]} 33. Kh2 {[%emt 0:01:16]} Rxg4 {[%emt 0:05:33]} 34. Nxa6 {[%emt 0:00:41]} Bxa2 {[%emt 0:00:55]} 35. c6 {[%emt 0:01:28]} Be6 {[%emt 0:03:56]} 36. Nc5 {[%emt 0:00:59]} Bf5 {[%emt 0:00:26]} 37. Rd5 {[%emt 0:00:22]} Rf4 {[%emt 0:02:02]} 38. c7 {[%emt 0:01:52]} Bg4 {[%emt 0:00:04]} 39. Nd7 {[%emt 0:00:46]} Rc4 {[%emt 0:01:29]} 40. Nf6+ {[%emt 0:00:02]} Kf7 {[%emt 0:00:04]} 41. Nxg4 {[%emt 0:30:17]} Rxc7 {[%emt 0:30:05]} 42. Kh3 {[%emt 0:03:47]} Ke6 {[%emt 0:00:00]} 43. Rxb5 {[%emt 0:00:00]} Kd6 {[%emt 0:00:00]} 44. Ne5 {[%emt 0:00:00]} Rc1 {[%emt 0:00:00]} 45. Kxh4 {[%emt 0:00:00]} Re1 {[%emt 0:00:00]} 46. Nc4+ {[%emt 0:00:00]} Kc6 {[%emt 0:00:00]} 47. Rc5+ {[%emt 0:00:00]} Kb7 {[%emt 0:00:00]} 48. b5 {[%emt 0:00:00]} 1-0

[Event "44th Chess Olympiad Open 2022"]
[Site "Chennai"]
[Date "2022.08.09"]
[Round "11.68"]
[White "Erfan Mohamad Firdaus"]
[Black "Mujahid Bin Yazeed"]
[Result "1/2-1/2"]
[ECO "C54"]
[WhiteElo "1294"]
[BlackElo "1418"]
[Annotator "NA COMBH"]
[PlyCount "65"]
[EventDate "2022.07.29"]
[EventType "team-tourn"]
[EventCountry "IND"]
[SourceTitle "playchess.com"]
[Source "ChessBase"]
[SourceQuality "1"]
[WhiteTeam "Qatar"]
[BlackTeam "Maldives"]
[WhiteTeamCountry "QAT"]
[BlackTeamCountry "MDV"]
[TimeControl "40/5400+30:1800+30"]

1. e4 {[%emt 0:00:26]} e5 {[%emt 0:00:10]} 2. Nf3 {[%emt 0:00:17]} Nc6 {[%emt 0:00:07]} 3. Bc4 {[%emt 0:00:23]} Bc5 {[%emt 0:00:13]} 4. c3 {[%emt 0:00:23]} Nf6 {[%emt 0:00:24]} 5. d3 {[%emt 0:00:34]} d6 {[%emt 0:00:31]} 6. Nbd2 {[%emt 0:01:21]} Qe7 {[%emt 0:02:15]} 7. b4 {[%emt 0:03:15]} Bb6 {[%emt 0:00:18]} 8. a4 {[%emt 0:00:49]} a6 {[%emt 0:01:54]} 9. h3 {[%emt 0:01:39]} h6 {[%emt 0:02:53]} 10. Bb3 {[%emt 0:04:35]} Bd7 {[%emt 0:11:17]} 11. Bb2 {[%emt 0:24:37]} Nh5 {[%emt 0:04:09]} 12. Qe2 {[%emt 0:10:59]} Nf4 {[%emt 0:02:15]} 13. Qf1 {[%emt 0:00:06]} f5 {[%emt 0:02:55]} 14. g3 {[%emt 0:08:59]} Ng6 {[%emt 0:01:24]} 15. Qe2 {[%emt 0:13:30]} Rf8 {[%emt 0:06:52]} 16. exf5 {[%emt 0:09:52]} Bxf5 {[%emt 0:01:19]} 17. Bd5 {[%emt 0:00:41]} Qd7 {[%emt 0:20:01]} 18. Be4 {[%emt 0:04:38]} d5 {[%emt 0:03:37]} 19. Bxf5 {[%emt 0:01:53]} Qxf5 {[%emt 0:00:08]} 20. O-O-O {[%emt 0:02:45]} O-O-O {[%emt 0:01:32]} 21. Rde1 {[%emt 0:04:36]} Rde8 {[%emt 0:01:34]} 22. Rhf1 {[%emt 0:02:14]} Qxh3 {[%emt 0:01:13]} 23. Nh2 {[%emt 0:01:41]} Kb8 {[%emt 0:09:08]} 24. Ng4 {[%emt 0:00:43]} Qh5 {[%emt 0:03:07]} 25. Ne3 {[%emt 0:00:30]} Qg5 {[%emt 0:02:37]} 26. Nxd5 {[%emt 0:00:54]} Ba7 {[%emt 0:03:39]} 27. Kc2 {[%emt 0:00:22]} Rd8 {[%emt 0:04:25]} 28. Ne3 {[%emt 0:00:33]} Rd7 {[%emt 0:01:30]} 29. Ne4 {[%emt 0:00:25]} Qe7 {[%emt 0:00:42]} 30. Qg4 {[%emt 0:00:48]} Qf7 {[%emt 0:01:44]} 31. Re2 {[%emt 0:00:38]} Rfd8 {[%emt 0:01:57]} 32. Rd1 {[%emt 0:00:25]} Nge7 {[%emt 0:01:30]} 33. Red2 {[%emt 0:00:33]} 1/2-1/2